bitfinex-derivatives/quotes_BTCF0:USTF0_20250630
["timestamp","ask_amount","ask_price","bid_price","bid_amount"]
[1751272948177,0.01860274,107590.0,107580.0,2.14334328]
[1751272949879,0.01860274,107590.0,107580.0,2.19904627]
[1751272953368,0.01860274,107590.0,107580.0,2.14334328]
[1751272956277,0.01860274,107590.0,107580.0,2.21769812]
[1751272959285,0.01860274,107590.0,107580.0,1.80777744]
[1751272959485,0.05120274,107590.0,107580.0,2.21769812]
[1751272959685,0.08430274,107590.0,107580.0,2.21769812]
[1751272962687,0.01860274,107590.0,107580.0,2.43777781]
[1751272970694,0.01860274,107590.0,107580.0,2.23281747]
[1751272971097,0.01860274,107590.0,107580.0,2.52881747]
[1751272974507,0.00149646,107590.0,107580.0,2.51369812]
[1751272980009,0.00149646,107590.0,107580.0,2.43934328]
[1751272982700,0.06469646,107590.0,107580.0,2.43934328]
[1751272983601,0.06469646,107590.0,107580.0,1.71774328]
[1751272983803,0.06469646,107590.0,107580.0,2.43934328]
[1751272986809,0.06469646,107590.0,107580.0,2.51369812]
[1751272991814,0.06469646,107590.0,107580.0,2.10377744]
[1751272992017,0.06469646,107590.0,107580.0,2.51369812]
[1751273006521,0.06469646,107590.0,107580.0,2.10377744]
[1751273006718,0.06469646,107590.0,107580.0,2.51369812]
[1751273009130,0.06469646,107590.0,107580.0,1.81989812]
[1751273009325,0.06469646,107590.0,107580.0,2.51353812]
[1751273009925,0.06469646,107590.0,107580.0,1.85689812]
[1751273010125,0.09529646,107590.0,107580.0,2.34618328]
[1751273010933,0.59529646,107590.0,107580.0,2.34618328]
[1751273011133,0.59529646,107590.0,107580.0,2.42053812]
[1751273011336,0.59529646,107590.0,107580.0,2.45153812]
[1751273012237,0.74397256,107590.0,107580.0,2.45153812]
[1751273012437,0.9489329,107590.0,107580.0,1.65254328]
[1751273012633,0.9489329,107590.0,107580.0,2.05018328]
[1751273012834,0.74397256,107590.0,107580.0,2.05018328]
[1751273013835,0.74397256,107590.0,107580.0,2.12453812]
[1751273014532,0.74397256,107590.0,107580.0,1.43089812]
[1751273015036,0.74397256,107590.0,107580.0,2.12453812]
[1751273015237,0.74397256,107590.0,107580.0,1.43089812]
[1751273015436,0.59529646,107590.0,107580.0,2.12453812]
[1751273015837,0.59529646,107590.0,107580.0,1.43089812]
[1751273016038,0.59529646,107590.0,107580.0,2.12453812]
[1751273016435,0.74397256,107590.0,107580.0,1.35654328]
[1751273016935,0.74397256,107590.0,107580.0,2.05018328]
[1751273017837,0.74397256,107590.0,107580.0,1.35654328]
[1751273018038,0.74397256,107590.0,107580.0,2.05018328]
[1751273018536,0.74397256,107590.0,107580.0,1.35654328]
[1751273019038,0.74397256,107590.0,107580.0,2.05018328]
[1751273019436,0.59529646,107590.0,107580.0,2.05018328]
[1751273019736,0.59529646,107590.0,107580.0,1.35654328]
[1751273019938,0.59529646,107590.0,107580.0,2.05018328]
[1751273023341,0.74397256,107590.0,107580.0,2.05018328]
[1751273023841,0.9489329,107590.0,107580.0,0.41140454]
[1751273024035,0.96547848,107590.0,107580.0,0.44857527]
[1751273024740,0.76051814,107590.0,107580.0,0.65353561]
[1751273024940,0.76051814,107590.0,107580.0,1.01433561]
[1751273025136,0.75951814,107590.0,107580.0,1.01233561]
[1751273025344,0.76151814,107590.0,107580.0,1.01333561]
[1751273026342,0.76151814,107590.0,107580.0,0.95758131]
[1751273026843,0.96647848,107590.0,107580.0,0.95758131]
[1751273027142,0.76151814,107590.0,107580.0,0.95758131]
[1751273029434,0.76151814,107590.0,107580.0,0.97201912]
[1751273030045,0.76151814,107590.0,107580.0,0.95758131]
[1751273032748,0.76151814,107590.0,107580.0,0.54766063]
[1751273032951,0.76151814,107590.0,107580.0,0.95758131]
[1751273038066,0.76151814,107590.0,107580.0,0.59678131]
[1751273038269,0.76151814,107590.0,107580.0,0.54766063]
[1751273038464,0.76151814,107590.0,107580.0,0.95758131]
[1751273039370,0.76151814,107590.0,107580.0,0.54766063]
[1751273039664,0.76151814,107590.0,107580.0,0.95758131]
[1751273040059,0.76151814,107590.0,107580.0,0.97204332]
[1751273042166,0.96647848,107590.0,107580.0,0.97204332]
[1751273042367,0.73091814,107590.0,107580.0,0.97204332]
[1751273042572,0.66771814,107590.0,107580.0,1.42694332]
[1751273043272,0.66771814,107590.0,107580.0,1.48269762]
[1751273043472,0.66771814,107590.0,107580.0,1.44552689]
[1751273047477,0.51904204,107590.0,107580.0,1.44552689]
[1751273048579,0.51904204,107590.0,107580.0,1.43106488]
[1751273049083,0.51904204,107590.0,107580.0,2.12462488]
[1751273050678,0.01904204,107590.0,107580.0,2.12462488]
[1751273052479,0.16771814,107590.0,107580.0,2.12462488]
[1751273052679,0.16771814,107590.0,107580.0,2.09462488]
[1751273052881,0.23121814,107590.0,107580.0,2.09462488]
[1751273053384,0.73121814,107590.0,107580.0,2.09462488]
[1751273061087,0.58254204,107590.0,107580.0,2.09462488]
[1751273065290,0.58254204,107590.0,107580.0,2.03887058]
[1751273066888,0.73121814,107590.0,107580.0,1.12107556]
[1751273067096,0.73121814,107590.0,107580.0,2.06513624]
[1751273067389,0.93617848,107590.0,107580.0,1.65521556]
[1751273067588,0.76251814,107590.0,107580.0,1.65521556]
[1751273067789,0.96747848,107590.0,107580.0,2.06513624]
[1751273067993,0.96747848,107590.0,107580.0,1.65521556]
[1751273068193,0.96747848,107590.0,107580.0,2.06513624]
[1751273069093,0.76251814,107590.0,107580.0,2.06513624]
[1751273069391,0.76251814,107590.0,107580.0,2.06515382]
[1751273069592,0.76251814,107590.0,107580.0,2.00941058]
[1751273069794,0.76251814,107590.0,107580.0,2.06515382]
[1751273070597,0.76251814,107590.0,107580.0,2.08054971]
[1751273071196,0.76251814,107590.0,107580.0,2.02480647]
[1751273073394,0.76251814,107590.0,107580.0,1.61488579]
[1751273073597,0.76251814,107590.0,107580.0,2.09916131]
[1751273079601,0.76251814,107590.0,107580.0,2.02480647]
[1751273080203,0.76251814,107590.0,107580.0,1.89484647]
[1751273080703,0.76251814,107590.0,107580.0,1.86164647]
[1751273080896,0.96747848,107590.0,107580.0,1.86164647]
[1751273081203,0.76251814,107590.0,107580.0,1.86164647]
[1751273081401,0.96747848,107590.0,107580.0,1.86164647]
[1751273082001,0.96747848,107590.0,107580.0,1.9174109]
[1751273083202,0.96747848,107590.0,107580.0,1.50749022]
[1751273083503,0.76251814,107590.0,107580.0,1.9174109]
[1751273083703,0.96747848,107590.0,107580.0,1.9174109]
[1751273085202,0.96747848,107590.0,107580.0,1.1958109]
[1751273085404,0.96747848,107590.0,107580.0,1.5566109]
[1751273090611,0.93617848,107590.0,107580.0,1.5566109]
[1751273090909,0.73121814,107590.0,107580.0,1.5897109]
[1751273093509,0.73121814,107590.0,107580.0,1.7207909]
[1751273094708,0.73121814,107590.0,107580.0,1.31087022]
[1751273095008,0.73121814,107590.0,107580.0,1.7207909]
[1751273099515,0.93617848,107590.0,107580.0,1.7207909]
[1751273099720,0.93617848,107590.0,107580.0,1.31087022]
[1751273099918,0.93617848,107590.0,107580.0,1.7207909]
[1751273100621,0.51904204,107590.0,107580.0,1.7207909]
[1751273100822,0.51904204,107590.0,107580.0,1.7853909]
[1751273101021,0.01904204,107590.0,107580.0,1.7853909]
[1751273101217,0.01904204,107590.0,107580.0,1.99035124]
[1751273101425,0.01904204,107590.0,107580.0,2.00894165]
[1751273101725,0.01904204,107590.0,107580.0,1.80398131]
[1751273102324,0.23906898,107610.0,107600.0,0.1486622]
[1751273102517,0.23906898,107610.0,107600.0,1.16175209]
[1751273102721,0.09040738,107610.0,107600.0,1.19425209]
[1751273102921,0.09040738,107610.0,107600.0,1.22475209]
[1751273103124,0.73905578,107610.0,107600.0,1.25785209]
[1751273103419,0.73905578,107610.0,107600.0,1.25885209]
[1751273103620,0.74405578,107610.0,107600.0,1.25885209]
[1751273104423,0.74405578,107610.0,107600.0,0.84893141]
[1751273104723,0.94901612,107610.0,107600.0,1.25885209]
[1751273106125,0.94901612,107610.0,107600.0,1.05389175]
[1751273106615,0.94901612,107610.0,107600.0,1.02079175]
[1751273107020,0.94901612,107610.0,107600.0,0.99029175]
[1751273107525,0.74405578,107610.0,107600.0,0.99029175]
[1751273107727,0.94901612,107610.0,107600.0,0.99029175]
[1751273108822,0.94901612,107610.0,107600.0,0.39179175]
[1751273109025,1.44051612,107610.0,107600.0,0.7158622]
[1751273109227,1.44051612,107610.0,107600.0,0.1496622]
[1751273109422,1.44051612,107610.0,107600.0,0.7161823]
[1751273109630,1.44051612,107610.0,107600.0,0.78120947]
[1751273109926,1.44051612,107610.0,107600.0,0.74404026]
[1751273110725,1.23555578,107610.0,107600.0,0.74404026]
[1751273110917,1.44051612,107610.0,107600.0,0.74404026]
[1751273111121,1.44051612,107610.0,107600.0,0.74408026]
[1751273113226,1.44051612,107610.0,107600.0,0.17752026]
[1751273114330,1.23555578,107610.0,107600.0,0.17752026]
[1751273114526,1.44051612,107610.0,107600.0,0.17752026]
[1751273119034,1.23555578,107610.0,107600.0,0.17752026]
[1751273119235,1.44051612,107610.0,107600.0,0.17752026]
[1751273119535,1.44051612,107610.0,107600.0,0.02885796]
[1751273119734,0.1486623,107600.0,107590.0,0.24159832]
[1751273120033,1.11618298,107600.0,107590.0,0.18584451]
[1751273120835,1.11618298,107600.0,107590.0,0.1486753]
[1751273122537,1.2062623,107600.0,107590.0,0.1486753]
[1751273122842,1.41122264,107600.0,107590.0,0.35363564]
[1751273123431,1.41122264,107600.0,107590.0,0.35463564]
[1751273123639,1.41422264,107600.0,107590.0,0.35463564]
[1751273126137,1.05342264,107600.0,107590.0,0.35463564]
[1751273127640,0.95342264,107600.0,107590.0,0.35463564]
[1751273132342,0.7484623,107600.0,107590.0,0.35463564]
[1751273132543,0.95342264,107600.0,107590.0,0.35463564]
[1751273133648,0.7484623,107600.0,107590.0,0.35463564]
[1751273133847,0.95342264,107600.0,107590.0,0.35463564]
[1751273134045,0.95342264,107600.0,107590.0,0.38563564]
[1751273135744,0.7484623,107600.0,107590.0,0.38563564]
[1751273135946,0.95342264,107600.0,107590.0,0.38563564]
[1751273139943,0.7484623,107600.0,107590.0,0.38563564]
[1751273140248,0.95342264,107600.0,107590.0,0.38563564]
[1751273140549,0.7484623,107600.0,107590.0,0.38563564]
[1751273140847,0.95342264,107600.0,107590.0,0.38563564]
[1751273141147,0.7484623,107600.0,107590.0,0.38563564]
[1751273141646,0.95342264,107600.0,107590.0,0.38563564]
[1751273142149,0.7484623,107600.0,107590.0,0.38563564]
[1751273142349,0.92092264,107600.0,107590.0,0.42280485]
[1751273142650,0.92092264,107600.0,107590.0,0.48820485]
[1751273143151,0.7159623,107600.0,107590.0,0.48820485]
[1751273143448,0.92092264,107600.0,107590.0,0.48820485]
[1751273144050,0.7159623,107600.0,107590.0,0.48820485]
[1751273144250,0.92092264,107600.0,107590.0,0.48820485]
[1751273145251,0.503,107600.0,107590.0,1.05396519]
[1751273145550,0.503,107600.0,107590.0,1.241199]
[1751273146751,0.003,107600.0,107590.0,1.14827598]
[1751273148551,0.003,107600.0,107590.0,1.44427598]
[1751273149249,0.003,107600.0,107590.0,1.51863082]
[1751273149951,0.003,107600.0,107590.0,1.44427598]
[1751273150449,0.003,107600.0,107590.0,1.4999583]
[1751273158159,0.30796666,107610.0,107600.0,0.1486623]
[1751273158359,0.30796666,107610.0,107600.0,1.67120193]
[1751273158756,0.80796666,107610.0,107600.0,1.67120193]
[1751273158959,0.51703001,107610.0,107600.0,1.67120193]
[1751273160155,0.51703001,107610.0,107600.0,1.61551961]
[1751273160460,0.52003001,107610.0,107600.0,1.61651961]
[1751273161061,0.52003001,107610.0,107600.0,1.82147995]
[1751273161465,0.02003001,107610.0,107600.0,1.82147995]
[1751273161662,0.0637,107620.0,107610.0,0.1486485]
[1751273161858,0.08078278,107620.0,107610.0,0.91028884]
[1751273162059,0.58078278,107620.0,107610.0,0.94188884]
[1751273163165,0.58078278,107620.0,107610.0,1.18394581]
[1751273163359,0.51708278,107620.0,107610.0,1.18394581]
[1751273163660,0.52008278,107620.0,107610.0,1.24062813]
[1751273164462,0.55138278,107620.0,107610.0,1.24062813]
[1751273164961,0.55138278,107620.0,107610.0,1.18494581]
[1751273166269,0.58298278,107620.0,107610.0,1.18494581]
[1751273169272,0.58298278,107620.0,107610.0,1.15334581]
[1751273169971,0.58298278,107620.0,107610.0,1.20902813]
[1751273170172,0.58298278,107620.0,107610.0,1.15334581]
[1751273172574,0.58298278,107620.0,107610.0,1.12224581]
[1751273173880,0.58298278,107620.0,107610.0,1.18730964]
[1751273175281,0.58298278,107620.0,107610.0,1.13162732]
[1751273176581,0.58298278,107620.0,107610.0,1.12224581]
[1751273176978,0.58298278,107620.0,107610.0,1.13133791]
[1751273177478,0.58298278,107620.0,107610.0,1.12224581]
[1751273179583,0.58298278,107620.0,107610.0,1.17792813]
[1751273180880,0.58298278,107620.0,107610.0,1.1408315]
[1751273185184,0.61358278,107620.0,107610.0,1.1408315]
[1751273189786,0.61358278,107620.0,107610.0,1.15950402]
[1751273193983,0.61358278,107620.0,107610.0,0.79870402]
[1751273194187,0.61358278,107620.0,107610.0,1.15950402]
[1751273194989,0.61358278,107620.0,107610.0,1.08514918]
[1751273197789,0.61358278,107620.0,107610.0,1.14089656]
[1751273198187,0.61358278,107620.0,107610.0,0.78009656]
[1751273198388,0.61358278,107620.0,107610.0,1.14089656]
[1751273198990,0.61358278,107620.0,107610.0,1.08514918]
[1751273199891,0.61358278,107620.0,107610.0,1.15950402]
[1751273202390,0.61358278,107620.0,107610.0,0.74958334]
[1751273202591,0.61358278,107620.0,107610.0,1.15950402]
[1751273203194,0.61358278,107620.0,107610.0,1.08514918]
[1751273203490,0.61358278,107620.0,107610.0,1.15950402]
[1751273209102,0.61358278,107620.0,107610.0,0.79870402]
[1751273209400,0.61358278,107620.0,107610.0,1.15950402]
[1751273210203,0.58298278,107620.0,107610.0,1.15950402]
[1751273210502,0.52008278,107620.0,107610.0,1.51970402]
[1751273210898,0.02008278,107620.0,107610.0,1.51970402]
[1751273220007,0.02008278,107620.0,107610.0,1.44534918]
[1751273222008,0.02008278,107620.0,107610.0,1.44534918]
[1751273224411,0.003,107620.0,107610.0,1.44534918]
[1751273225510,0.003,107620.0,107610.0,2.01006918]
[1751273225711,0.0677,107620.0,107610.0,2.01006918]
[1751273226907,0.0677,107620.0,107610.0,1.31366918]
[1751273227213,0.0677,107620.0,107610.0,2.01002918]
[1751273228413,0.0677,107620.0,107610.0,2.08438402]
[1751273228806,0.0677,107620.0,107610.0,2.05118402]
[1751273232210,0.0677,107620.0,107610.0,1.64126334]
[1751273232416,0.0677,107620.0,107610.0,1.57708334]
[1751273232614,0.0677,107620.0,107610.0,1.78204368]
[1751273232813,0.1001,107620.0,107610.0,1.78204368]
[1751273233016,0.1001,107620.0,107610.0,1.98700402]
[1751273239621,0.1001,107620.0,107610.0,1.29072402]
[1751273240017,0.1001,107620.0,107610.0,1.98704402]
[1751273241613,0.1001,107620.0,107610.0,1.08576368]
[1751273241818,0.1001,107620.0,107610.0,1.78208368]
[1751273242024,0.6001,107620.0,107610.0,1.78208368]
[1751273242521,0.6001,107620.0,107610.0,1.98704402]
[1751273243225,0.6001,107620.0,107610.0,0.99472402]
[1751273243525,0.6001,107620.0,107610.0,1.69124402]
[1751273248628,0.7487347,107620.0,107610.0,1.69124402]
[1751273250431,0.7487347,107620.0,107610.0,1.48628368]
[1751273250632,0.7487347,107620.0,107610.0,1.48640368]
[1751273250836,0.95369504,107620.0,107610.0,1.41212884]
[1751273251025,0.7487347,107620.0,107610.0,1.4678723]
[1751273254035,0.7487347,107620.0,107610.0,0.9021523]
[1751273254344,0.7487347,107620.0,107610.0,1.4679523]
[1751273255028,0.6001,107620.0,107610.0,1.4679523]
[1751273255234,0.6001,107620.0,107610.0,1.50509315]
[1751273255441,0.7487347,107620.0,107610.0,1.50509315]
[1751273257035,0.7487347,107620.0,107610.0,1.30013281]
[1751273257244,0.7487347,107620.0,107610.0,1.50509315]
[1751273258242,0.6001,107620.0,107610.0,1.50509315]
[1751273261546,0.7487347,107620.0,107610.0,1.50509315]
[1751273263152,0.7487347,107620.0,107610.0,1.30013281]
[1751273263453,0.7487347,107620.0,107610.0,1.50509315]
[1751273264651,0.7487347,107620.0,107610.0,1.4679523]
[1751273265052,0.7487347,107620.0,107610.0,1.1071523]
[1751273265253,0.7487347,107620.0,107610.0,1.4679523]
[1751273266447,0.95369504,107620.0,107610.0,1.4679523]
[1751273267051,0.7487347,107620.0,107610.0,1.4679523]
[1751273267247,0.6001,107620.0,107610.0,1.4679523]
[1751273278358,0.6001,107620.0,107610.0,1.5001523]
[1751273278762,0.6001,107620.0,107610.0,1.44440884]
[1751273279955,0.5677,107620.0,107610.0,1.50016591]
[1751273285163,0.5677,107620.0,107610.0,1.51876368]
[1751273286963,0.5677,107620.0,107610.0,1.44440884]
[1751273289865,0.5677,107620.0,107610.0,1.50017768]
[1751273290162,0.5677,107620.0,107610.0,1.73633802]
[1751273290366,0.5677,107620.0,107610.0,1.76803802]
[1751273296173,0.5677,107620.0,107610.0,1.78662402]
[1751273297976,0.5677,107620.0,107610.0,1.58166368]
[1751273300574,0.5677,107620.0,107610.0,1.54996368]
[1751273302776,0.7163346,107620.0,107610.0,1.54996368]
[1751273307083,0.5677,107620.0,107610.0,1.54996368]
[1751273309780,0.7163347,107620.0,107610.0,0.85316368]
[1751273310082,0.5677,107620.0,107610.0,1.54936368]
[1751273312687,0.7163346,107620.0,107610.0,1.51816368]
[1751273313590,0.5677,107620.0,107610.0,1.51816368]
[1751273314481,0.5677,107620.0,107610.0,1.72312402]
[1751273315780,0.5677,107620.0,107610.0,1.75502402]
[1751273323183,0.5677,107620.0,107610.0,1.73643512]
[1751273323383,0.503,107620.0,107610.0,1.76763512]
[1751273327791,0.503,107620.0,107610.0,1.37630334]
[1751273327992,0.503,107620.0,107610.0,1.78622402]
[1751273328194,0.5337,107620.0,107610.0,1.78622402]
[1751273330596,0.5665,107620.0,107610.0,1.78622402]
[1751273333904,0.7151346,107620.0,107610.0,1.78622402]
[1751273340013,0.7151346,107620.0,107610.0,1.71186918]
[1751273341716,0.7151346,107620.0,107610.0,0.6057485]
[1751273342016,0.7151346,107620.0,107610.0,1.56185912]
[1751273344717,0.7151346,107620.0,107610.0,1.76681946]
[1751273345316,0.7151346,107620.0,107610.0,1.78542402]
[1751273345515,0.7151346,107620.0,107610.0,1.71106918]
[1751273345912,0.7151346,107620.0,107610.0,1.78542402]
[1751273347717,0.5665,107620.0,107610.0,1.78542402]
[1751273349721,0.7151346,107620.0,107610.0,1.78542402]
[1751273350423,0.5665,107620.0,107610.0,1.78542402]
[1751273351723,0.7151346,107620.0,107610.0,1.78542402]
[1751273363633,0.7151346,107620.0,107610.0,1.75422402]
[1751273368139,0.5665,107620.0,107610.0,1.75422402]
[1751273368437,0.7151346,107620.0,107610.0,1.75422402]
[1751273372139,0.7151346,107620.0,107610.0,1.39342402]
[1751273372440,0.7151346,107620.0,107610.0,1.75422402]
[1751273372639,0.7151346,107620.0,107610.0,1.75414402]
[1751273373242,0.7151346,107620.0,107610.0,1.67978918]
[1751273373435,0.7151346,107620.0,107610.0,1.75414402]
[1751273374744,0.5665,107620.0,107610.0,1.75414402]
[1751273377542,0.7151346,107620.0,107610.0,1.75414402]
[1751273379042,0.5665,107620.0,107610.0,1.75414402]
[1751273387247,0.7151346,107620.0,107610.0,1.75414402]
[1751273388543,0.7151346,107620.0,107610.0,1.39334402]
[1751273388750,0.7151346,107620.0,107610.0,1.75414402]
[1751273389645,0.7151346,107620.0,107610.0,1.39334402]
[1751273389944,0.7151346,107620.0,107610.0,1.75414402]
[1751273393853,0.7151346,107620.0,107610.0,1.67978918]
[1751273394552,0.7151346,107620.0,107610.0,1.75414402]
[1751273396550,0.7151346,107620.0,107610.0,1.54918368]
[1751273397156,0.7151346,107620.0,107610.0,1.34422334]
[1751273397360,0.7151346,107620.0,107610.0,1.75414402]
[1751273400159,0.7151346,107620.0,107610.0,1.67978918]
[1751273402958,0.5665,107620.0,107610.0,1.67978918]
[1751273405662,0.7151346,107620.0,107610.0,1.67978918]
[1751273406662,0.7151346,107620.0,107610.0,1.75414402]
[1751273409557,0.7151346,107620.0,107610.0,1.39334402]
[1751273409758,0.7151346,107620.0,107610.0,1.75414402]
[1751273410965,0.7151346,107620.0,107610.0,1.39334402]
[1751273411165,0.7151346,107620.0,107610.0,1.75414402]
[1751273422276,0.5665,107620.0,107610.0,1.75414402]
[1751273423178,0.5665,107620.0,107610.0,1.39334402]
[1751273423378,0.5665,107620.0,107610.0,1.75414402]
[1751273423578,0.7151346,107620.0,107610.0,1.75414402]
[1751273423879,0.5665,107620.0,107610.0,1.75414402]
[1751273429078,0.7151346,107620.0,107610.0,1.73555824]
[1751273435286,0.7151346,107620.0,107610.0,1.75414402]
[1751273442694,0.7151346,107620.0,107610.0,1.73555824]
[1751273445590,0.7151346,107620.0,107610.0,1.37475824]
[1751273445790,0.7151346,107620.0,107610.0,1.73555824]
[1751273447794,0.7151346,107620.0,107610.0,1.75414402]
[1751273449201,0.7151346,107620.0,107610.0,1.39334402]
[1751273449403,0.7151346,107620.0,107610.0,1.75414402]
[1751273451404,0.5665,107620.0,107610.0,1.75414402]
[1751273457702,0.7151346,107620.0,107610.0,1.75414402]
[1751273458512,0.5665,107620.0,107610.0,1.75414402]
[1751273460013,0.5665,107620.0,107610.0,1.67978918]
[1751273461108,0.5665,107620.0,107610.0,1.67918918]
[1751273463413,0.7151346,107620.0,107610.0,1.73495776]
[1751273466317,0.7151346,107620.0,107610.0,1.04023776]
[1751273466516,0.7151346,107620.0,107610.0,1.73479776]
[1751273466816,0.7151346,107620.0,107610.0,1.67902918]
[1751273468917,0.7151346,107620.0,107610.0,1.73479747]
[1751273470415,0.7151346,107620.0,107610.0,1.67902918]
[1751273470918,0.7151346,107620.0,107610.0,1.73479265]
[1751273471117,0.7151346,107620.0,107610.0,1.67902918]
[1751273471318,0.7151346,107620.0,107610.0,1.05882402]
[1751273471621,0.7151346,107620.0,107610.0,1.75334402]
[1751273473320,0.5665,107620.0,107610.0,1.75334402]
[1751273474322,0.5665,107620.0,107610.0,1.7347498]
[1751273476329,0.5665,107620.0,107610.0,1.0402298]
[1751273476521,0.5665,107620.0,107610.0,1.7347098]
[1751273484738,0.5665,107620.0,107610.0,1.67894918]
[1751273485037,0.5665,107620.0,107610.0,1.75330402]
[1751273485535,0.5665,107620.0,107610.0,1.67894918]
[1751273491948,0.5665,107620.0,107610.0,1.75330402]
[1751273494247,0.5665,107620.0,107610.0,1.67894918]
[1751273495546,0.5665,107620.0,107610.0,1.73471144]
[1751273501848,0.5665,107620.0,107610.0,1.67894918]
[1751273502648,0.5665,107620.0,107610.0,1.31814918]
[1751273502849,0.5665,107620.0,107610.0,1.67894918]
[1751273503450,0.5665,107620.0,107610.0,1.73471066]
[1751273503746,0.5665,107620.0,107610.0,1.67894918]
[1751273505043,0.5665,107620.0,107610.0,1.75330402]
[1751273505945,0.503,107620.0,107610.0,1.78380402]
[1751273506147,0.503,107620.0,107610.0,1.98876436]
[1751273506445,0.503,107620.0,107610.0,1.78380402]
[1751273507042,0.4492473,107620.0,107610.0,1.98876436]
[1751273507246,0.01791559,107630.0,107620.0,0.1486346]
[1751273507445,0.01791559,107630.0,107620.0,1.07049952]
[1751273508047,0.01791559,107630.0,107620.0,1.07996675]
[1751273509245,0.51791559,107630.0,107620.0,1.08096675]
[1751273509441,0.52191559,107630.0,107620.0,1.08096675]
[1751273511148,0.52191559,107630.0,107620.0,1.07149952]
[1751273511354,0.52191559,107630.0,107620.0,1.05290471]
[1751273511554,0.58461559,107630.0,107620.0,1.05290471]
[1751273512551,0.58461559,107630.0,107620.0,1.06236066]
[1751273513453,0.5677,107630.0,107620.0,1.06236066]
[1751273514843,0.5677,107630.0,107620.0,1.05290471]
[1751273515047,0.5677,107630.0,107620.0,1.71570471]
[1751273518660,0.7163207,107630.0,107620.0,1.71570471]
[1751273518862,0.7163207,107630.0,107620.0,1.02150471]
[1751273519054,0.7163207,107630.0,107620.0,1.65166471]
[1751273519354,0.7464207,107630.0,107620.0,1.65166471]
[1751273520159,0.7464207,107630.0,107620.0,1.67025952]
[1751273520562,0.5978,107630.0,107620.0,1.67025952]
[1751273521256,0.5978,107630.0,107620.0,1.26033884]
[1751273521460,0.5978,107630.0,107620.0,1.67025952]
[1751273522461,0.7464208,107630.0,107620.0,1.67025952]
[1751273522663,0.7464208,107630.0,107620.0,0.97609952]
[1751273522857,0.7464208,107630.0,107620.0,1.67025952]
[1751273523562,0.7464208,107630.0,107620.0,0.97609952]
[1751273523756,0.7464208,107630.0,107620.0,1.67025952]
[1751273524063,0.7464208,107630.0,107620.0,1.67021952]
[1751273524563,0.5978,107630.0,107620.0,1.67021952]
[1751273524857,0.5978,107630.0,107620.0,1.67013952]
[1751273528468,0.5978,107630.0,107620.0,1.70193952]
[1751273528966,0.5958,107630.0,107620.0,1.70193952]
[1751273533767,0.7444208,107630.0,107620.0,1.70193952]
[1751273533972,0.5958,107630.0,107620.0,1.68875012]
[1751273536274,0.5958,107630.0,107620.0,1.68871012]
[1751273539971,0.503,107630.0,107620.0,1.68871012]
[1751273540274,0.503,107630.0,107620.0,1.91371562]
[1751273540571,0.503,107630.0,107620.0,1.08905801]
[1751273540774,0.003,107630.0,107620.0,0.58473733]
[1751273540980,0.0671,107630.0,107620.0,0.99465801]
[1751273541176,0.0979,107630.0,107620.0,1.68861801]
[1751273541875,0.0979,107630.0,107620.0,0.99465801]
[1751273542383,0.0969,107630.0,107620.0,1.68957801]
[1751273542879,0.0959,107630.0,107620.0,1.68757801]
[1751273543076,0.0969,107630.0,107620.0,1.68857801]
[1751273543275,0.5969,107630.0,107620.0,1.68857801]
[1751273543470,0.5969,107630.0,107620.0,1.70723116]
[1751273544472,0.5969,107630.0,107620.0,1.68855188]
[1751273551078,0.5969,107630.0,107620.0,1.66998247]
[1751273558291,0.7147208,107630.0,107620.0,1.68855188]
[1751273558492,0.7471208,107630.0,107620.0,1.68855188]
[1751273558894,0.95208104,107630.0,107620.0,1.35335154]
[1751273559288,0.7471207,107630.0,107620.0,1.35335154]
[1751273559793,0.7471207,107630.0,107620.0,1.55831188]
[1751273560198,0.95208104,107630.0,107620.0,1.35335154]
[1751273560392,0.7471207,107630.0,107620.0,1.55831188]
[1751273563294,0.95208104,107630.0,107620.0,1.55831188]
[1751273566502,0.95208104,107630.0,107620.0,1.48403528]
[1751273567204,0.95208104,107630.0,107620.0,1.53975392]
[1751273568503,0.7471207,107630.0,107620.0,1.53975392]
[1751273572510,1.41288104,107630.0,107620.0,0.41031358]
[1751273572809,1.41288104,107630.0,107620.0,0.80613529]
[1751273573111,1.41288104,107630.0,107620.0,1.01109563]
[1751273573409,1.41288104,107630.0,107620.0,0.95537699]
[1751273574112,1.41288104,107630.0,107620.0,0.39173699]
[1751273574512,1.41288104,107630.0,107620.0,0.95537699]
[1751273575511,1.41288104,107630.0,107620.0,0.98322654]
[1751273576312,1.41288104,107630.0,107620.0,0.95537699]
[1751273576507,1.41288104,107630.0,107620.0,0.98322413]
[1751273577810,1.2079207,107630.0,107620.0,0.98322413]
[1751273578011,1.41288104,107630.0,107620.0,0.98322413]
[1751273579913,1.41288104,107630.0,107620.0,0.21462379]
[1751273580210,1.41288104,107630.0,107620.0,0.98322413]
[1751273581215,1.41288104,107630.0,107620.0,0.94608208]
[1751273587919,1.41288104,107630.0,107620.0,0.38244208]
[1751273588217,1.2079207,107630.0,107620.0,0.38244208]
[1751273588517,1.41288104,107630.0,107620.0,0.38244208]
[1751273589714,0.1486346,107620.0,107610.0,0.26010285]
[1751273589917,0.91049494,107620.0,107610.0,1.02866319]
[1751273590217,0.91049494,107620.0,107610.0,0.99152114]
[1751273590418,0.91049494,107620.0,107610.0,0.42792114]
[1751273591019,1.11545528,107620.0,107610.0,0.22294125]
[1751273591221,1.61545528,107620.0,107610.0,0.03914205]
[1751273591413,1.61645528,107620.0,107610.0,0.03914205]
[1751273592921,1.61645528,107620.0,107610.0,0.002]
[1751273594523,1.74645528,107620.0,107610.0,0.002]
[1751273598819,0.1486622,107600.0,107590.0,0.54035939]
[1751273599125,0.37033254,107600.0,107590.0,1.25320109]
[1751273599324,0.40123254,107600.0,107590.0,0.68960109]
[1751273600217,0.1962722,107600.0,107590.0,0.68960109]
[1751273600415,0.40123254,107600.0,107590.0,0.68960109]
[1751273600821,0.40223254,107600.0,107590.0,0.69460109]
[1751273601227,0.41149208,107600.0,107590.0,0.69460109]
[1751273601727,0.38059208,107600.0,107590.0,0.69460109]
[1751273601923,0.17563174,107600.0,107590.0,0.69460109]
[1751273602828,0.67563174,107600.0,107590.0,0.69460109]
[1751273603026,0.77563174,107600.0,107590.0,1.22514109]
[1751273603227,0.84103174,107600.0,107590.0,1.22514109]
[1751273603428,0.84103174,107600.0,107590.0,1.18799904]
[1751273603631,0.84103174,107600.0,107590.0,1.21909904]
[1751273605727,1.04599208,107600.0,107590.0,1.21909904]
[1751273606030,1.04599208,107600.0,107590.0,0.46415904]
[1751273606332,1.04599208,107600.0,107590.0,1.02779904]
[1751273606629,1.04599208,107600.0,107590.0,0.99063184]
[1751273607820,1.04599208,107600.0,107590.0,0.7856715]
[1751273608020,1.04599208,107600.0,107590.0,0.99063184]
[1751273609633,1.04599208,107600.0,107590.0,0.7856715]
[1751273609838,1.04599208,107600.0,107590.0,0.99063184]
[1751273610635,1.04599208,107600.0,107590.0,0.7856715]